[Event "***Titled Tuesday 3|2 Blitz"]
[Site "Chess.com"]
[Date "2017.02.07"]
[Round "4"]
[White "chorejason"]
[Black "Carolina-moon"]
[Result "1-0"]
[WhiteElo "2019"]
[BlackElo "2025"]
[TimeControl "180+2"]
[EndTime "13:54:27 PST"]
[Termination "chorejason won by resignation"]

1. e4 {[%clk 0:03:02]} 1... c5 {[%clk 0:03:00.5]} 2. Nf3 {[%clk 0:03:00.3]} 2...
d6 {[%clk 0:03:01.7]} 3. d4 {[%clk 0:03:00.8]} 3... Nf6 {[%clk 0:03:03.2]} 4.
Nc3 {[%clk 0:03:00.5]} 4... cxd4 {[%clk 0:03:04.4]} 5. Nxd4 {[%clk 0:03:01.2]}
5... a6 {[%clk 0:03:05.9]} 6. Bc4 {[%clk 0:03:01.1]} 6... e6 {[%clk 0:03:07]} 7.
O-O {[%clk 0:03:01.5]} 7... b5 {[%clk 0:03:05.9]} 8. Bb3 {[%clk 0:03:02.6]} 8...
b4 {[%clk 0:03:04.8]} 9. Na4 {[%clk 0:03:02.1]} 9... Bd7 {[%clk 0:03:03.6]} 10.
f4 {[%clk 0:02:54.5]} 10... Qa5 {[%clk 0:02:57.1]} 11. c3 {[%clk 0:02:50.3]}
11... Nxe4 {[%clk 0:02:45.1]} 12. Qe1 {[%clk 0:02:15.3]} 12... Nc5 {[%clk
0:02:12.4]} 13. cxb4 {[%clk 0:02:03]} 13... Bxa4 {[%clk 0:01:37.5]} 14. bxa5
{[%clk 0:02:01]} 14... Bxb3 {[%clk 0:01:37]} 15. axb3 {[%clk 0:01:59.5]} 15...
Nbd7 {[%clk 0:01:38.9]} 16. b4 {[%clk 0:02:00.5]} 1-0

[Event "***Titled Tuesday 3|2 Blitz"]
[Site "Chess.com"]
[Date "2017.02.07"]
[Round "4"]
[White "Daniela_Movileanu"]
[Black "Robin-Side"]
[Result "1-0"]
[WhiteElo "2070"]
[BlackElo "2359"]
[TimeControl "180+2"]
[EndTime "13:55:07 PST"]
[Termination "Daniela_Movileanu won by resignation"]

1. e4 {[%clk 0:03:02]} 1... g6 {[%clk 0:03:01.3]} 2. d4 {[%clk 0:03:01.2]} 2...
Bg7 {[%clk 0:03:00.8]} 3. Nf3 {[%clk 0:02:58.7]} 3... e6 {[%clk 0:03:02.1]} 4.
Be2 {[%clk 0:02:59.9]} 4... Ne7 {[%clk 0:03:03.1]} 5. O-O {[%clk 0:03:00.4]}
5... d5 {[%clk 0:03:03.8]} 6. e5 {[%clk 0:03:01]} 6... O-O {[%clk 0:03:05]} 7.
c4 {[%clk 0:03:01.9]} 7... b6 {[%clk 0:03:03.6]} 8. Nc3 {[%clk 0:03:02.2]} 8...
Bb7 {[%clk 0:03:03.8]} 9. Be3 {[%clk 0:03:01.5]} 9... dxc4 {[%clk 0:03:00]} 10.
Bxc4 {[%clk 0:03:00.9]} 10... h6 {[%clk 0:02:57.8]} 11. Rc1 {[%clk 0:03:00.3]}
11... Nf5 {[%clk 0:02:58.8]} 12. Qe2 {[%clk 0:02:54.5]} 12... Nxe3 {[%clk
0:02:53.9]} 13. Qxe3 {[%clk 0:02:56.4]} 13... Nd7 {[%clk 0:02:53.5]} 14. Rfd1
{[%clk 0:02:55.7]} 14... Qe7 {[%clk 0:02:47.9]} 15. d5 {[%clk 0:02:46.3]} 15...
exd5 {[%clk 0:02:49]} 16. Nxd5 {[%clk 0:02:47.3]} 16... Bxd5 {[%clk 0:02:49.8]}
17. Bxd5 {[%clk 0:02:49.2]} 17... Rac8 {[%clk 0:02:29]} 18. e6 {[%clk
0:02:49.8]} 18... Ne5 {[%clk 0:00:55.4]} 19. Nxe5 {[%clk 0:02:39.6]} 19... fxe6
{[%clk 0:00:55.4]} 20. Nxg6 {[%clk 0:02:36.8]} 1-0

[Event "***Titled Tuesday 3|2 Blitz"]
[Site "Chess.com"]
[Date "2017.02.07"]
[Round "4"]
[White "Lukianoo"]
[Black "GGuseinov"]
[Result "1-0"]
[WhiteElo "2606"]
[BlackElo "2537"]
[TimeControl "180+2"]
[EndTime "13:55:19 PST"]
[Termination "Lukianoo won by resignation"]

1. e4 {[%clk 0:03:01.9]} 1... c5 {[%clk 0:03:00.9]} 2. b3 {[%clk 0:03:01.5]}
2... g6 {[%clk 0:02:59.6]} 3. Bb2 {[%clk 0:03:01.5]} 3... Nf6 {[%clk 0:03:01]}
4. Qf3 {[%clk 0:03:02.4]} 4... d6 {[%clk 0:02:57.7]} 5. Bb5+ {[%clk 0:03:02.6]}
5... Bd7 {[%clk 0:02:55.9]} 6. Bxf6 {[%clk 0:03:01.9]} 6... exf6 {[%clk
0:02:56.4]} 7. Bxd7+ {[%clk 0:03:02.2]} 7... Nxd7 {[%clk 0:02:57.8]} 8. Nc3
{[%clk 0:03:03.1]} 8... Bg7 {[%clk 0:02:59.3]} 9. Nge2 {[%clk 0:03:04.2]} 9...
O-O {[%clk 0:02:59.6]} 10. O-O {[%clk 0:03:04.8]} 10... Re8 {[%clk 0:02:56.9]}
11. Rae1 {[%clk 0:02:56.4]} 11... Rc8 {[%clk 0:02:43.5]} 12. Nd5 {[%clk
0:02:49.6]} 12... Qa5 {[%clk 0:02:42.3]} 13. Nec3 {[%clk 0:02:47.4]} 13... b5
{[%clk 0:02:40.9]} 14. a4 {[%clk 0:02:34.1]} 14... bxa4 {[%clk 0:02:29.1]} 15.
bxa4 {[%clk 0:02:36]} 15... Nb6 {[%clk 0:02:28.3]} 16. Nxf6+ {[%clk 0:02:31.7]}
16... Bxf6 {[%clk 0:02:30.2]} 17. Qxf6 {[%clk 0:02:32.8]} 17... Re6 {[%clk
0:02:31.9]} 18. Qg5 {[%clk 0:02:28]} 18... Rce8 {[%clk 0:02:25]} 19. f4 {[%clk
0:02:21.7]} 19... Qb4 {[%clk 0:02:18.1]} 20. f5 {[%clk 0:02:10.1]} 20... R6e7
{[%clk 0:02:10.6]} 21. a5 {[%clk 0:02:02.5]} 21... Qd4+ {[%clk 0:02:10.2]} 22.
Kh1 {[%clk 0:02:01.5]} 22... Nc4 {[%clk 0:02:10.6]} 23. Nd5 {[%clk 0:01:53.4]}
23... Qxd5 {[%clk 0:02:11.4]} 24. Qxe7 {[%clk 0:01:54.3]} 24... Rxe7 {[%clk
0:02:07.2]} 25. exd5 {[%clk 0:01:53.5]} 25... Rb7 {[%clk 0:01:54.7]} 26. f6
{[%clk 0:01:51.7]} 26... Ne5 {[%clk 0:01:51.6]} 27. Rb1 {[%clk 0:01:50]} 1-0

[Event "***Titled Tuesday 3|2 Blitz"]
[Site "Chess.com"]
[Date "2017.02.07"]
[Round "4"]
[White "Evgeny81"]
[Black "kikydu96"]
[Result "1-0"]
[WhiteElo "2462"]
[BlackElo "2338"]
[TimeControl "180+2"]
[EndTime "13:55:42 PST"]
[Termination "Evgeny81 won by resignation"]

1. Nf3 {[%clk 0:03:02]} 1... d5 {[%clk 0:03:00.1]} 2. g3 {[%clk 0:03:01]} 2...
Nf6 {[%clk 0:02:58.3]} 3. Bg2 {[%clk 0:03:00.8]} 3... Bf5 {[%clk 0:02:58.5]} 4.
O-O {[%clk 0:02:58.9]} 4... e6 {[%clk 0:02:59.7]} 5. d3 {[%clk 0:02:58.9]} 5...
c6 {[%clk 0:02:59.8]} 6. c4 {[%clk 0:02:56.1]} 6... Nbd7 {[%clk 0:02:59.2]} 7.
cxd5 {[%clk 0:02:52.4]} 7... exd5 {[%clk 0:02:57.3]} 8. Nc3 {[%clk 0:02:51.3]}
8... Be7 {[%clk 0:02:58.3]} 9. Nd4 {[%clk 0:02:41.3]} 9... Bg6 {[%clk
0:02:58.7]} 10. e4 {[%clk 0:02:42.5]} 10... dxe4 {[%clk 0:02:56.3]} 11. dxe4
{[%clk 0:02:41.5]} 11... O-O {[%clk 0:02:54.1]} 12. f4 {[%clk 0:02:37]} 12...
Bc5 {[%clk 0:02:52.9]} 13. Kh1 {[%clk 0:02:37.7]} 13... Bh5 {[%clk 0:02:53]} 14.
Nf3 {[%clk 0:02:34.6]} 14... Re8 {[%clk 0:02:41.1]} 15. e5 {[%clk 0:02:28.6]}
15... Ng4 {[%clk 0:02:26.7]} 16. Ne4 {[%clk 0:02:29.2]} 16... Bg6 {[%clk
0:01:45.6]} 17. Nfg5 {[%clk 0:02:21.8]} 17... Ndxe5 {[%clk 0:01:03.3]} 18. Qxd8
{[%clk 0:02:03.7]} 18... Raxd8 {[%clk 0:01:00.6]} 19. fxe5 {[%clk 0:02:05.1]}
19... h6 {[%clk 0:00:49]} 20. Nxc5 {[%clk 0:02:02.2]} 1-0

[Event "***Titled Tuesday 3|2 Blitz"]
[Site "Chess.com"]
[Date "2017.02.07"]
[Round "4"]
[White "ka1ser64"]
[Black "MyleneFarmer"]
[Result "1-0"]
[WhiteElo "2305"]
[BlackElo "2340"]
[TimeControl "180+2"]
[EndTime "13:55:49 PST"]
[Termination "ka1ser64 won by resignation"]

1. d4 {[%clk 0:02:47]} 1... Nf6 {[%clk 0:02:58.8]} 2. c4 {[%clk 0:02:48.2]} 2...
e6 {[%clk 0:02:59.5]} 3. Nc3 {[%clk 0:02:49.8]} 3... Bb4 {[%clk 0:02:59.9]} 4.
e3 {[%clk 0:02:51.5]} 4... c5 {[%clk 0:02:59.1]} 5. Ne2 {[%clk 0:02:52.5]} 5...
O-O {[%clk 0:02:58.8]} 6. a3 {[%clk 0:02:53.7]} 6... Bxc3+ {[%clk 0:02:58.3]} 7.
Nxc3 {[%clk 0:02:55]} 7... cxd4 {[%clk 0:02:57.6]} 8. Qxd4 {[%clk 0:02:56.1]}
8... d5 {[%clk 0:02:59.1]} 9. Qh4 {[%clk 0:02:31.6]} 9... Nc6 {[%clk 0:02:51.3]}
10. Be2 {[%clk 0:01:54.4]} 10... d4 {[%clk 0:02:49]} 11. exd4 {[%clk 0:01:55.6]}
11... Qxd4 {[%clk 0:02:49]} 12. Qxd4 {[%clk 0:01:54.9]} 12... Nxd4 {[%clk
0:02:47.7]} 13. Bd1 {[%clk 0:01:56]} 13... b6 {[%clk 0:02:39.2]} 14. Be3 {[%clk
0:01:57]} 14... Nf5 {[%clk 0:02:39]} 15. Bf4 {[%clk 0:01:50.7]} 15... Bb7 {[%clk
0:02:39.4]} 16. f3 {[%clk 0:01:49.3]} 16... Rfd8 {[%clk 0:02:37.7]} 17. Rc1
{[%clk 0:01:34.5]} 17... Rac8 {[%clk 0:02:37.9]} 18. Ne2 {[%clk 0:01:29.8]}
18... Nd4 {[%clk 0:02:35]} 19. Kf2 {[%clk 0:01:22.9]} 19... b5 {[%clk
0:02:03.8]} 20. Be3 {[%clk 0:01:19.6]} 20... Nxe2 {[%clk 0:01:58.2]} 21. Bxe2
{[%clk 0:01:20.8]} 21... bxc4 {[%clk 0:01:59.6]} 22. Rxc4 {[%clk 0:01:21]} 22...
Nd5 {[%clk 0:01:51.6]} 23. Bxa7 {[%clk 0:01:18.9]} 23... Nf4 {[%clk 0:01:48.3]}
24. Rxf4 {[%clk 0:01:08.3]} 1-0

[Event "***Titled Tuesday 3|2 Blitz"]
[Site "Chess.com"]
[Date "2017.02.07"]
[Round "4"]
[White "maciek_92"]
[Black "SavelijTartakover"]
[Result "1-0"]
[WhiteElo "2573"]
[BlackElo "2520"]
[TimeControl "180+2"]
[EndTime "13:56:52 PST"]
[Termination "maciek_92 won by resignation"]

1. c4 {[%clk 0:03:02]} 1... Nf6 {[%clk 0:02:59]} 2. Nc3 {[%clk 0:03:00.8]} 2...
g6 {[%clk 0:02:58.8]} 3. g3 {[%clk 0:03:01.3]} 3... Bg7 {[%clk 0:02:59.4]} 4.
Bg2 {[%clk 0:03:02.6]} 4... O-O {[%clk 0:03:00.9]} 5. d4 {[%clk 0:03:03.9]} 5...
d6 {[%clk 0:03:01.5]} 6. Nf3 {[%clk 0:03:03.5]} 6... Nc6 {[%clk 0:03:02.1]} 7.
O-O {[%clk 0:03:04.9]} 7... Bg4 {[%clk 0:03:02.7]} 8. d5 {[%clk 0:03:02.7]} 8...
Na5 {[%clk 0:03:01.7]} 9. b3 {[%clk 0:03:04.2]} 9... c6 {[%clk 0:02:57]} 10. Bd2
{[%clk 0:02:45.3]} 10... c5 {[%clk 0:02:48.4]} 11. h3 {[%clk 0:02:44.2]} 11...
Bxf3 {[%clk 0:02:47.9]} 12. exf3 {[%clk 0:02:45.7]} 12... a6 {[%clk 0:02:48.5]}
13. Rc1 {[%clk 0:02:37.6]} 13... b5 {[%clk 0:02:40.7]} 14. Ne4 {[%clk
0:02:27.7]} 14... Nxe4 {[%clk 0:02:21.6]} 15. fxe4 {[%clk 0:02:27.4]} 15... Bd4
{[%clk 0:02:23]} 16. Kh2 {[%clk 0:02:27.8]} 16... e5 {[%clk 0:02:19.7]} 17. f4
{[%clk 0:02:21.7]} 17... f6 {[%clk 0:02:18.9]} 18. h4 {[%clk 0:01:57.3]} 18...
Ra7 {[%clk 0:02:16.1]} 19. Qe1 {[%clk 0:01:52.2]} 19... b4 {[%clk 0:02:05.9]}
20. Bh3 {[%clk 0:01:47.2]} 20... Kh8 {[%clk 0:02:03.5]} 21. f5 {[%clk
0:01:42.8]} 21... Rg8 {[%clk 0:01:54.6]} 22. fxg6 {[%clk 0:01:42.5]} 22... hxg6
{[%clk 0:01:53.2]} 23. Be6 {[%clk 0:01:43]} 23... Rf8 {[%clk 0:01:39.8]} 24. Qe2
{[%clk 0:01:43.4]} 24... Rh7 {[%clk 0:01:37.9]} 25. Kg2 {[%clk 0:01:42.1]} 25...
Nb7 {[%clk 0:01:37.3]} 26. Qg4 {[%clk 0:01:41.5]} 26... Qe8 {[%clk 0:01:32]} 27.
Rf3 {[%clk 0:01:32.3]} 27... Nd8 {[%clk 0:01:32]} 28. Rcf1 {[%clk 0:01:33.6]}
28... Nxe6 {[%clk 0:01:24.7]} 29. dxe6 {[%clk 0:01:35.5]} 29... Kg7 {[%clk
0:01:04.5]} 30. Bg5 {[%clk 0:01:25.4]} 1-0

[Event "***Titled Tuesday 3|2 Blitz"]
[Site "Chess.com"]
[Date "2017.02.07"]
[Round "4"]
[White "Bad4life"]
[Black "Ilja_Semjonovs"]
[Result "0-1"]
[WhiteElo "2305"]
[BlackElo "2180"]
[TimeControl "180+2"]
[EndTime "13:57:30 PST"]
[Termination "Ilja_Semjonovs won by resignation"]

1. e4 {[%clk 0:03:02]} 1... c5 {[%clk 0:02:59.3]} 2. Nf3 {[%clk 0:03:01.1]} 2...
d6 {[%clk 0:02:58.2]} 3. d4 {[%clk 0:03:02.1]} 3... cxd4 {[%clk 0:02:58.6]} 4.
Nxd4 {[%clk 0:03:04]} 4... Nf6 {[%clk 0:02:59.9]} 5. Nc3 {[%clk 0:03:05.4]} 5...
a6 {[%clk 0:03:00.8]} 6. Bg5 {[%clk 0:03:04.5]} 6... e6 {[%clk 0:02:59.7]} 7. f4
{[%clk 0:03:05.7]} 7... Qb6 {[%clk 0:03:00.2]} 8. Qd3 {[%clk 0:03:00.7]} 8...
Qxb2 {[%clk 0:03:00.2]} 9. Rb1 {[%clk 0:03:01.7]} 9... Qa3 {[%clk 0:03:01.4]}
10. f5 {[%clk 0:03:01.5]} 10... Nc6 {[%clk 0:02:45.4]} 11. Nxc6 {[%clk
0:03:02.4]} 11... bxc6 {[%clk 0:02:45.4]} 12. Be2 {[%clk 0:03:04]} 12... e5
{[%clk 0:02:36.4]} 13. O-O {[%clk 0:03:00.1]} 13... Be7 {[%clk 0:02:35.8]} 14.
Be3 {[%clk 0:02:52]} 14... d5 {[%clk 0:02:05.3]} 15. exd5 {[%clk 0:02:40.7]}
15... cxd5 {[%clk 0:02:05.9]} 16. Nxd5 {[%clk 0:02:28.7]} 16... Qxd3 {[%clk
0:02:06]} 17. Nxf6+ {[%clk 0:02:28.7]} 17... Bxf6 {[%clk 0:02:07.5]} 18. Bxd3
{[%clk 0:02:29.4]} 18... Bd7 {[%clk 0:02:06.9]} 19. Be4 {[%clk 0:02:22.4]} 19...
Rc8 {[%clk 0:02:06]} 20. Rb7 {[%clk 0:02:19.4]} 20... Bb5 {[%clk 0:02:00.7]} 21.
Ra1 {[%clk 0:02:03.5]} 21... O-O {[%clk 0:01:59.7]} 22. a4 {[%clk 0:02:04.5]}
22... Bc6 {[%clk 0:01:58.6]} 23. Bxc6 {[%clk 0:02:03.8]} 23... Rxc6 {[%clk
0:01:59.6]} 24. Ra2 {[%clk 0:01:50]} 24... Rfc8 {[%clk 0:01:57.6]} 25. Ra7
{[%clk 0:01:43.9]} 25... h5 {[%clk 0:01:48.2]} 26. h3 {[%clk 0:01:35.6]} 26...
e4 {[%clk 0:01:46.7]} 27. a5 {[%clk 0:01:31.3]} 27... Rc3 {[%clk 0:01:46]} 28.
Bf4 {[%clk 0:01:16.3]} 28... Bd4+ {[%clk 0:01:44.8]} 29. Kh2 {[%clk 0:01:13.6]}
29... Bxa7 {[%clk 0:01:45.8]} 30. f6 {[%clk 0:00:58.9]} 30... gxf6 {[%clk
0:01:43.4]} 31. Ra4 {[%clk 0:00:55.5]} 31... e3 {[%clk 0:01:42.1]} 32. Bg3
{[%clk 0:00:54.2]} 32... Rxc2 {[%clk 0:01:37.7]} 33. Rh4 {[%clk 0:00:51.7]}
33... Bb8 {[%clk 0:01:36.5]} 34. Rxh5 {[%clk 0:00:49.7]} 34... Bxg3+ {[%clk
0:01:36.1]} 35. Kxg3 {[%clk 0:00:51.6]} 35... e2 {[%clk 0:01:36.9]} 36. Rh4
{[%clk 0:00:48.4]} 36... e1=Q+ {[%clk 0:01:35.8]} 37. Kh2 {[%clk 0:00:50]} 37...
Qxh4 {[%clk 0:01:35]} 38. Kh1 {[%clk 0:00:51.6]} 38... Qg3 {[%clk 0:01:32.9]}
0-1

[Event "***Titled Tuesday 3|2 Blitz"]
[Site "Chess.com"]
[Date "2017.02.07"]
[Round "4"]
[White "GianmarcoVaR"]
[Black "MateusViageiro"]
[Result "1-0"]
[WhiteElo "2403"]
[BlackElo "2420"]
[TimeControl "180+2"]
[EndTime "13:57:30 PST"]
[Termination "GianmarcoVaR won by resignation"]

1. d4 {[%clk 0:03:02]} 1... Nf6 {[%clk 0:02:58]} 2. Bg5 {[%clk 0:03:01.9]} 2...
e6 {[%clk 0:02:57.8]} 3. e4 {[%clk 0:03:01.8]} 3... h6 {[%clk 0:02:58]} 4. Bxf6
{[%clk 0:03:02.7]} 4... Qxf6 {[%clk 0:02:59]} 5. c3 {[%clk 0:02:51.7]} 5... c5
{[%clk 0:02:59.7]} 6. Nf3 {[%clk 0:02:48.9]} 6... Nc6 {[%clk 0:03:00.1]} 7. Na3
{[%clk 0:02:26.7]} 7... cxd4 {[%clk 0:03:00.6]} 8. Nb5 {[%clk 0:02:27]} 8... Qd8
{[%clk 0:02:32.8]} 9. cxd4 {[%clk 0:02:23]} 9... Bb4+ {[%clk 0:02:31.6]} 10. Nc3
{[%clk 0:02:23]} 10... Qa5 {[%clk 0:02:30.8]} 11. Qb3 {[%clk 0:02:18.7]} 11...
O-O {[%clk 0:02:29.1]} 12. Bd3 {[%clk 0:02:18.9]} 12... d6 {[%clk 0:02:16.6]}
13. O-O {[%clk 0:02:17.7]} 13... Bxc3 {[%clk 0:02:17.8]} 14. bxc3 {[%clk
0:02:17.7]} 14... Rb8 {[%clk 0:02:12.4]} 15. a4 {[%clk 0:01:59.5]} 15... Bd7
{[%clk 0:02:11.7]} 16. Nd2 {[%clk 0:01:58]} 16... d5 {[%clk 0:02:11]} 17. Bb5
{[%clk 0:01:25.8]} 17... a6 {[%clk 0:02:01.4]} 18. Bd3 {[%clk 0:00:57.6]} 18...
Nxd4 {[%clk 0:02:00.7]} 19. cxd4 {[%clk 0:00:57.6]} 19... Qxd2 {[%clk
0:02:01.5]} 20. exd5 {[%clk 0:00:58.4]} 20... exd5 {[%clk 0:02:02.6]} 21. a5
{[%clk 0:00:53.7]} 21... Qg5 {[%clk 0:01:54.7]} 22. Rfc1 {[%clk 0:00:38.6]}
22... Rfe8 {[%clk 0:01:46.8]} 23. Rc7 {[%clk 0:00:35.2]} 23... Bh3 {[%clk
0:01:44.8]} 24. Bf1 {[%clk 0:00:35.9]} 24... Re4 {[%clk 0:01:32.5]} 25. Qxh3
{[%clk 0:00:31.7]} 25... Rxd4 {[%clk 0:01:33.7]} 26. Rc8+ {[%clk 0:00:30.5]}
26... Rxc8 {[%clk 0:01:34.3]} 27. Qxc8+ {[%clk 0:00:32.4]} 27... Kh7 {[%clk
0:01:36]} 28. Qxb7 {[%clk 0:00:32.5]} 28... Rf4 {[%clk 0:01:34.9]} 29. Qxa6
{[%clk 0:00:23.3]} 29... d4 {[%clk 0:01:35.8]} 30. Qd3+ {[%clk 0:00:22.7]} 30...
g6 {[%clk 0:01:36.1]} 31. a6 {[%clk 0:00:24.2]} 31... Qf6 {[%clk 0:01:37]} 32.
a7 {[%clk 0:00:24.3]} 32... Rxf2 {[%clk 0:01:37.9]} 33. a8=Q {[%clk 0:00:25.3]}
1-0

[Event "***Titled Tuesday 3|2 Blitz"]
[Site "Chess.com"]
[Date "2017.02.07"]
[Round "4"]
[White "ShimanovAlex"]
[Black "Kouzari"]
[Result "1-0"]
[WhiteElo "2645"]
[BlackElo "2490"]
[TimeControl "180+2"]
[EndTime "13:57:45 PST"]
[Termination "ShimanovAlex won by resignation"]

1. d4 {[%clk 0:03:01.9]} 1... Nf6 {[%clk 0:02:58]} 2. Bf4 {[%clk 0:03:00.9]}
2... e6 {[%clk 0:02:57.4]} 3. e3 {[%clk 0:03:00.4]} 3... c5 {[%clk 0:02:31]} 4.
Nf3 {[%clk 0:02:57.9]} 4... Nc6 {[%clk 0:02:23.5]} 5. Nc3 {[%clk 0:02:50.5]}
5... a6 {[%clk 0:01:54.6]} 6. d5 {[%clk 0:02:50]} 6... exd5 {[%clk 0:01:24.1]}
7. Nxd5 {[%clk 0:02:51.9]} 7... d6 {[%clk 0:01:16.7]} 8. Bc4 {[%clk 0:02:42.2]}
8... Nxd5 {[%clk 0:00:58.4]} 9. Bxd5 {[%clk 0:02:41.4]} 9... Be7 {[%clk
0:00:58.6]} 10. O-O {[%clk 0:02:36.6]} 10... O-O {[%clk 0:00:59.3]} 11. c3
{[%clk 0:02:36]} 11... Be6 {[%clk 0:00:59.6]} 12. Qd2 {[%clk 0:02:33.9]} 12...
Qd7 {[%clk 0:00:58.1]} 13. Rad1 {[%clk 0:02:33.7]} 13... Rfd8 {[%clk 0:00:58.5]}
14. e4 {[%clk 0:02:34]} 14... Bf6 {[%clk 0:00:51.7]} 15. h3 {[%clk 0:02:29.9]}
15... Ne5 {[%clk 0:00:48.6]} 16. Bxe5 {[%clk 0:02:29.7]} 16... dxe5 {[%clk
0:00:39.5]} 17. Qe2 {[%clk 0:02:27.8]} 17... Qe7 {[%clk 0:00:36.9]} 18. c4
{[%clk 0:02:25.9]} 18... Rab8 {[%clk 0:00:36.5]} 19. a4 {[%clk 0:02:24.1]} 19...
Rd6 {[%clk 0:00:37]} 20. Rd3 {[%clk 0:02:20.1]} 20... Rb6 {[%clk 0:00:37.1]} 21.
b3 {[%clk 0:02:19.3]} 21... g6 {[%clk 0:00:38.1]} 22. Rfd1 {[%clk 0:02:20]}
22... Kg7 {[%clk 0:00:33.7]} 23. Bxe6 {[%clk 0:02:20.6]} 23... Qxe6 {[%clk
0:00:33.7]} 24. Qc2 {[%clk 0:02:19.2]} 24... Rc6 {[%clk 0:00:28]} 25. Rd5 {[%clk
0:02:19.5]} 25... Rcc8 {[%clk 0:00:25.8]} 26. Rd6 {[%clk 0:02:19.5]} 26... Qe7
{[%clk 0:00:26.3]} 27. Rd7 {[%clk 0:02:20.5]} 27... Qe8 {[%clk 0:00:26.9]} 28.
R1d5 {[%clk 0:02:17.8]} 28... Rc6 {[%clk 0:00:28]} 29. Qd2 {[%clk 0:02:10.1]}
29... h6 {[%clk 0:00:26.5]} 30. Nh2 {[%clk 0:02:09.4]} 30... b5 {[%clk
0:00:24.4]} 31. Ng4 {[%clk 0:01:57.9]} 31... Bg5 {[%clk 0:00:25.6]} 32. Qc3
{[%clk 0:01:58.1]} 32... Bf6 {[%clk 0:00:15.8]} 33. R7d6 {[%clk 0:01:46.2]}
33... Rbb6 {[%clk 0:00:11.7]} 34. Nxf6 {[%clk 0:01:45.9]} 1-0

[Event "***Titled Tuesday 3|2 Blitz"]
[Site "Chess.com"]
[Date "2017.02.07"]
[Round "4"]
[White "Genghis_K"]
[Black "Dale"]
[Result "1-0"]
[WhiteElo "2684"]
[BlackElo "1979"]
[TimeControl "180+2"]
[EndTime "13:57:49 PST"]
[Termination "Genghis_K won by checkmate"]

1. d4 {[%clk 0:03:02]} 1... Nf6 {[%clk 0:03:02]} 2. Bf4 {[%clk 0:03:00.3]} 2...
d5 {[%clk 0:03:01.5]} 3. e3 {[%clk 0:03:00.2]} 3... c5 {[%clk 0:03:01.9]} 4. c3
{[%clk 0:03:00.7]} 4... Nc6 {[%clk 0:03:02.7]} 5. Nd2 {[%clk 0:03:01.6]} 5...
Bf5 {[%clk 0:02:59.1]} 6. Ngf3 {[%clk 0:02:58.4]} 6... e6 {[%clk 0:03:00]} 7.
Nh4 {[%clk 0:02:54.4]} 7... Be7 {[%clk 0:02:57.4]} 8. Nxf5 {[%clk 0:02:54.8]}
8... exf5 {[%clk 0:02:58.8]} 9. dxc5 {[%clk 0:02:53.1]} 9... O-O {[%clk
0:02:51.6]} 10. Nb3 {[%clk 0:02:53.1]} 10... Ne4 {[%clk 0:02:48]} 11. Bd3 {[%clk
0:02:54.2]} 11... Qd7 {[%clk 0:02:37.3]} 12. Qc2 {[%clk 0:02:52.7]} 12... Rad8
{[%clk 0:02:37.1]} 13. f3 {[%clk 0:02:51.1]} 13... Nxc5 {[%clk 0:02:33.3]} 14.
Bxf5 {[%clk 0:02:52.3]} 14... Qe8 {[%clk 0:02:29.1]} 15. Bxh7+ {[%clk
0:02:52.7]} 15... Kh8 {[%clk 0:02:30.4]} 16. Bd3 {[%clk 0:02:41.3]} 16... Bh4+
{[%clk 0:02:14.7]} 17. g3 {[%clk 0:02:40.6]} 17... Nxd3+ {[%clk 0:02:13.6]} 18.
Qxd3 {[%clk 0:02:41]} 18... g5 {[%clk 0:02:13.4]} 19. Bc7 {[%clk 0:02:36.6]}
19... Rd7 {[%clk 0:02:08.2]} 20. gxh4 {[%clk 0:02:37.7]} 20... Rxc7 {[%clk
0:02:08]} 21. hxg5 {[%clk 0:02:39.3]} 21... Re7 {[%clk 0:02:06.4]} 22. Kf2
{[%clk 0:02:39.3]} 22... Ne5 {[%clk 0:02:02.3]} 23. Qf5 {[%clk 0:02:39.7]} 23...
f6 {[%clk 0:01:55.3]} 24. gxf6 {[%clk 0:02:35.3]} 24... Rh7 {[%clk 0:01:52.6]}
25. h4 {[%clk 0:02:33.2]} 25... Nc4 {[%clk 0:01:51.7]} 26. Rae1 {[%clk 0:02:31]}
26... Nxb2 {[%clk 0:01:49.9]} 27. Rhg1 {[%clk 0:02:28.4]} 27... Qb5 {[%clk
0:01:38.1]} 28. Rg7 {[%clk 0:02:20.4]} 28... Nd3+ {[%clk 0:01:38]} 29. Kg3
{[%clk 0:02:17.2]} 29... Rh6 {[%clk 0:01:14.7]} 30. Nd4 {[%clk 0:02:08.9]} 30...
Qc4 {[%clk 0:00:58.7]} 31. Rg1 {[%clk 0:01:15.4]} 31... Rfxf6 {[%clk 0:00:47.5]}
32. Qg5 {[%clk 0:00:58.4]} 32... Qxa2 {[%clk 0:00:33.8]} 33. Rg8+ {[%clk
0:00:55.8]} 33... Kh7 {[%clk 0:00:34.4]} 34. Qg7# {[%clk 0:00:56.8]} 1-0

[Event "***Titled Tuesday 3|2 Blitz"]
[Site "Chess.com"]
[Date "2017.02.07"]
[Round "4"]
[White "oskariot"]
[Black "Feegus"]
[Result "0-1"]
[WhiteElo "2508"]
[BlackElo "2369"]
[TimeControl "180+2"]
[EndTime "13:57:58 PST"]
[Termination "Feegus won by resignation"]

1. c4 {[%clk 0:03:02]} 1... Nf6 {[%clk 0:02:57.8]} 2. g3 {[%clk 0:03:02.3]} 2...
g6 {[%clk 0:02:57.8]} 3. Bg2 {[%clk 0:03:03.2]} 3... d5 {[%clk 0:02:59.1]} 4.
cxd5 {[%clk 0:03:03.8]} 4... Nxd5 {[%clk 0:03:00]} 5. Nc3 {[%clk 0:03:05.2]}
5... Nb6 {[%clk 0:03:01.2]} 6. d3 {[%clk 0:03:04.6]} 6... Bg7 {[%clk 0:03:02.4]}
7. Be3 {[%clk 0:03:05.9]} 7... O-O {[%clk 0:03:02.8]} 8. Rc1 {[%clk 0:03:07.4]}
8... Nc6 {[%clk 0:02:55.4]} 9. Bxc6 {[%clk 0:03:07.8]} 9... bxc6 {[%clk
0:02:56.5]} 10. Nf3 {[%clk 0:03:09.5]} 10... Nd5 {[%clk 0:02:53.4]} 11. Bd2
{[%clk 0:02:53.4]} 11... Bh3 {[%clk 0:02:51.6]} 12. Rg1 {[%clk 0:02:48.6]} 12...
Bd7 {[%clk 0:02:46.2]} 13. Nxd5 {[%clk 0:02:24.9]} 13... cxd5 {[%clk 0:02:46.7]}
14. Bc3 {[%clk 0:02:25.8]} 14... f6 {[%clk 0:02:34.4]} 15. Bb4 {[%clk
0:02:19.8]} 15... Re8 {[%clk 0:02:32.5]} 16. g4 {[%clk 0:02:12.7]} 16... e5
{[%clk 0:02:31.3]} 17. Qc2 {[%clk 0:01:45.9]} 17... e4 {[%clk 0:01:57.3]} 18.
dxe4 {[%clk 0:01:28.3]} 18... Rxe4 {[%clk 0:01:56.3]} 19. Ba5 {[%clk 0:00:57.4]}
19... Bb5 {[%clk 0:01:46.1]} 20. e3 {[%clk 0:00:55]} 20... Qe8 {[%clk
0:01:42.2]} 21. Kd2 {[%clk 0:00:46.4]} 21... c6 {[%clk 0:01:29]} 22. Qc5 {[%clk
0:00:45.4]} 22... Bf8 {[%clk 0:01:26.4]} 23. Qc3 {[%clk 0:00:46.5]} 23... Ra4
{[%clk 0:01:24.8]} 24. a3 {[%clk 0:00:35]} 24... Qe4 {[%clk 0:00:59.3]} 25. Nd4
{[%clk 0:00:33.5]} 25... Rc4 {[%clk 0:00:58]} 26. Qb3 {[%clk 0:00:26.1]} 26...
Rxd4+ {[%clk 0:00:59.3]} 27. exd4 {[%clk 0:00:27.2]} 27... Qe2+ {[%clk
0:00:50.6]} 0-1